bitfinex-derivatives/quotes_BTCF0:USTF0_20250718
["timestamp","ask_amount","ask_price","bid_price","bid_amount"]
[1752867055382,0.37158743,117840.0,117830.0,1.2267993]
[1752867055683,0.45491743,117840.0,117830.0,1.2267993]
[1752867055883,0.45491743,117840.0,117830.0,1.2287993]
[1752867056078,0.45491743,117840.0,117830.0,1.66348686]
[1752867056279,0.45491743,117840.0,117830.0,1.6725478]
[1752867056478,0.45491743,117840.0,117830.0,1.6735478]
[1752867056680,0.45491743,117840.0,117830.0,0.37286094]
[1752867056878,0.88960499,117840.0,117830.0,0.54249484]
[1752867057079,0.88960499,117840.0,117830.0,0.3638]
[1752867057383,0.45491743,117840.0,117830.0,1.1448739]
[1752867058584,0.45492143,117840.0,117830.0,1.1449139]
[1752867058886,0.45492143,117840.0,117830.0,0.5334339]
[1752867059084,0.45492143,117840.0,117830.0,1.15366488]
[1752867059683,0.45492143,117840.0,117830.0,1.1448339]
[1752867060077,0.45492143,117840.0,117830.0,1.57952146]
[1752867061586,0.45492143,117840.0,117830.0,1.1448339]
[1752867066984,0.45492143,117840.0,117830.0,1.57952146]
[1752867068188,0.45492143,117840.0,117830.0,1.1448339]
[1752867068886,0.45492143,117840.0,117830.0,1.57952146]
[1752867069684,0.45492143,117840.0,117830.0,0.96812146]
[1752867069887,0.45492143,117840.0,117830.0,1.59812447]
[1752867070891,0.45492143,117840.0,117830.0,1.16343691]
[1752867071089,0.45492143,117840.0,117830.0,1.59812447]
[1752867071291,0.88960899,117840.0,117830.0,0.99380301]
[1752867071690,0.88960899,117840.0,117830.0,0.99360301]
[1752867072494,0.88960899,117840.0,117830.0,0.9746]
[1752867072792,0.88960899,117840.0,117830.0,1.1442253]
[1752867073589,0.45492143,117840.0,117830.0,1.1442253]
[1752867074892,0.45492143,117840.0,117830.0,0.9746]
[1752867075091,0.88960899,117840.0,117830.0,0.9746]
[1752867076183,0.45492143,117840.0,117830.0,0.9746]
[1752867076590,0.45492143,117840.0,117830.0,0.5334328]
[1752867076793,0.45492143,117840.0,117830.0,0.9744]
[1752867076990,0.88960899,117840.0,117830.0,0.9744]
[1752867077392,0.45492143,117840.0,117830.0,1.144033]
[1752867077992,0.88960899,117840.0,117830.0,1.144033]
[1752867078692,0.45492143,117840.0,117830.0,0.533433]
[1752867078994,0.45492143,117840.0,117830.0,1.143953]
[1752867079189,0.45492143,117840.0,117830.0,1.439153]
[1752867079688,0.88960899,117840.0,117830.0,0.659]
[1752867080286,0.88960899,117840.0,117830.0,1.26948]
[1752867082392,0.88960899,117840.0,117830.0,1.2694]
[1752867085090,0.88960899,117840.0,117830.0,0.9742]
[1752867086795,0.88960899,117840.0,117830.0,0.3638]
[1752867086997,0.69492143,117840.0,117830.0,0.97404]
[1752867087396,1.12960899,117840.0,117830.0,0.97404]
[1752867087996,1.13260899,117840.0,117830.0,0.97304]
[1752867088198,1.14960943,117840.0,117830.0,0.97304]
[1752867088897,1.14960943,117840.0,117830.0,0.97104]
[1752867089095,1.15060943,117840.0,117830.0,0.97104]
[1752867090399,1.51140943,117840.0,117830.0,0.61024]
[1752867090694,0.0482,117820.0,117810.0,1.8298]
[1752867090901,1.22635899,117820.0,117810.0,2.32305601]
[1752867091090,0.79167143,117820.0,117810.0,1.71285601]
[1752867091290,0.79167143,117820.0,117810.0,2.3144618]
[1752867092502,0.79167143,117820.0,117810.0,2.3154618]
[1752867092698,0.79167143,117820.0,117810.0,1.5356]
[1752867092896,1.22635899,117820.0,117810.0,2.1458]
[1752867093196,1.22735899,117820.0,117810.0,2.44096]
[1752867093392,0.85946097,117820.0,117810.0,2.44096]
[1752867094003,0.85946097,117820.0,117810.0,2.6106218]
[1752867095492,0.85946097,117820.0,117810.0,3.04530936]
[1752867097100,0.85946097,117820.0,117810.0,2.6106218]
[1752867097804,0.21912097,117820.0,117810.0,3.40610936]
[1752867099101,0.52264097,117820.0,117810.0,3.40610946]
[1752867099299,0.95732853,117820.0,117810.0,1.8308]
[1752867099606,0.95732853,117820.0,117810.0,2.44092]
[1752867100106,0.52264097,117820.0,117810.0,2.44092]
[1752867102511,0.95732853,117820.0,117810.0,2.44092]
[1752867102905,0.95732853,117820.0,117810.0,1.5356]
[1752867103099,0.95732853,117820.0,117810.0,2.14568]
[1752867103803,1.21732853,117820.0,117810.0,2.14568]
[1752867104309,1.27828963,117820.0,117810.0,2.14568]
[1752867104607,0.84360207,117820.0,117810.0,1.5356]
[1752867104808,0.84360207,117820.0,117810.0,2.315342]
[1752867106305,0.84360207,117820.0,117810.0,2.14568]
[1752867106608,0.84360207,117820.0,117810.0,2.315342]
[1752867108203,0.84360207,117820.0,117810.0,2.14568]
[1752867108603,0.58360207,117820.0,117810.0,2.14568]
[1752867109403,0.52264097,117820.0,117810.0,2.14568]
[1752867110711,0.52264097,117820.0,117810.0,2.3153419]
[1752867114513,0.52264097,117820.0,117810.0,2.14568]
[1752867115616,0.52264097,117820.0,117810.0,2.3153419]
[1752867115915,0.52264097,117820.0,117810.0,2.14568]
[1752867116913,0.52264097,117820.0,117810.0,2.315342]
[1752867119125,0.52264097,117820.0,117810.0,2.14568]
[1752867119525,0.52264097,117820.0,117810.0,0.97188]
[1752867120228,1.31812853,117820.0,117810.0,0.001]
[1752867120418,1.51310963,117820.0,117810.0,0.60892]
[1752867120618,1.51310963,117820.0,117810.0,0.5630616]
[1752867120619,1.47686853,117820.0,117810.0,0.5630616]
[1752867120920,0.11789,117800.0,117790.0,0.2952]
[1752867121124,0.28232,117790.0,117780.0,1.84908554]
[1752867121321,0.90016899,117790.0,117780.0,1.55388554]
[1752867121626,0.90016899,117790.0,117780.0,2.16380554]
[1752867121824,0.46548143,117790.0,117780.0,2.16380554]
[1752867122023,0.46548143,117790.0,117780.0,2.33351074]
[1752867122221,0.46548143,117790.0,117780.0,2.16380554]
[1752867122427,0.90016899,117790.0,117780.0,2.16380554]
[1752867122620,0.46548143,117790.0,117780.0,2.7681983]
[1752867123023,0.46548143,117790.0,117780.0,2.16380554]
[1752867123223,0.46548143,117790.0,117780.0,2.1448]
[1752867123423,0.90016899,117790.0,117780.0,2.1448]
[1752867123620,0.48252202,117790.0,117780.0,2.3145052]
[1752867123826,0.48252202,117790.0,117780.0,2.74919276]
[1752867124126,0.48252202,117790.0,117780.0,2.1448]
[1752867124127,0.49146566,117790.0,117780.0,2.1448]
[1752867124528,0.84146566,117790.0,117780.0,2.1448]
[1752867124728,1.27615322,117790.0,117780.0,2.1448]
[1752867125228,0.84146566,117790.0,117780.0,2.1448]
[1752867128232,1.27615322,117790.0,117780.0,2.1448]
[1752867128731,1.63695322,117790.0,117780.0,1.784]
[1752867129520,1.63695322,117790.0,117780.0,0.60992]
[1752867131124,1.63795322,117790.0,117780.0,0.60992]
[1752867131523,1.61662179,117790.0,117780.0,0.60992]
[1752867131728,1.27589974,117790.0,117780.0,0.60992]
[1752867131922,1.27789974,117790.0,117780.0,0.60992]
[1752867132427,0.83426854,117790.0,117780.0,0.60992]
[1752867132630,0.83526854,117790.0,117780.0,0.60992]
[1752867133330,1.2699561,117790.0,117780.0,0.60992]
[1752867134033,0.84397919,117790.0,117780.0,0.60992]
[1752867134236,1.27866675,117790.0,117780.0,0.60992]
[1752867135033,1.63946675,117790.0,117780.0,0.60992]
[1752867137938,1.20477919,117790.0,117780.0,0.60992]
[1752867138130,1.63946675,117790.0,117780.0,0.60992]
[1752867138438,1.27866675,117790.0,117780.0,0.60992]
[1752867139036,0.84397919,117790.0,117780.0,0.60992]
[1752867139440,1.27866675,117790.0,117780.0,0.60992]
[1752867140141,1.2699561,117790.0,117780.0,0.60992]
[1752867140340,0.83526854,117790.0,117780.0,0.60992]
[1752867141742,0.84386896,117790.0,117780.0,0.60992]
[1752867142040,1.27855652,117790.0,117780.0,0.60992]
[1752867143544,1.33965671,117790.0,117780.0,0.60992]
[1752867143842,0.90496915,117790.0,117780.0,0.60992]
[1752867144245,0.90480626,117790.0,117780.0,0.60992]
[1752867144542,0.84386896,117790.0,117780.0,0.60992]
[1752867145240,1.27855652,117790.0,117780.0,0.60992]
[1752867146243,1.35468947,117790.0,117780.0,0.60992]
[1752867146944,0.84386896,117790.0,117780.0,0.60992]
[1752867147141,0.92000191,117790.0,117780.0,0.56405415]
[1752867147443,1.35468947,117790.0,117780.0,0.56405415]
[1752867148038,0.92000191,117790.0,117780.0,0.56405415]
[1752867148240,1.34608905,117790.0,117780.0,0.56405415]
[1752867149638,1.2699561,117790.0,117780.0,0.56405415]
[1752867150142,1.33106707,117790.0,117780.0,0.56405415]
[1752867150342,1.6307561,117790.0,117780.0,0.564156]
[1752867151644,1.2699561,117790.0,117780.0,0.564156]
[1752867151839,0.83526854,117790.0,117780.0,0.564156]
[1752867152035,1.2699561,117790.0,117780.0,0.564156]
[1752867152235,0.83526854,117790.0,117780.0,1.52934846]
[1752867153845,0.83526854,117790.0,117780.0,1.0946609]
[1752867154047,0.83526854,117790.0,117780.0,1.52934846]
[1752867155042,0.83526854,117790.0,117780.0,0.36090185]
[1752867155246,0.83526854,117790.0,117780.0,1.14040675]
[1752867156444,0.83526854,117790.0,117780.0,0.77960675]
[1752867157941,0.81822795,117790.0,117780.0,0.77960675]
[1752867158742,0.81822795,117790.0,117780.0,1.14040675]
[1752867159042,0.81822795,117790.0,117780.0,0.77960675]
[1752867160247,0.81822795,117790.0,117780.0,1.14040675]
[1752867160447,0.81822795,117790.0,117780.0,0.77960675]
[1752867162850,0.81822795,117790.0,117780.0,0.60990185]
[1752867163048,0.81822795,117790.0,117780.0,0.77960685]
[1752867163550,0.81822795,117790.0,117780.0,1.15929883]
[1752867164853,0.81822795,117790.0,117780.0,0.79849883]
[1752867165550,0.81822795,117790.0,117780.0,1.23318639]
[1752867166149,0.81822795,117790.0,117780.0,0.62338639]
[1752867166449,0.81822795,117790.0,117780.0,1.23306639]
[1752867166753,0.81822795,117790.0,117780.0,1.59386639]
[1752867167054,0.81822795,117790.0,117780.0,1.59351929]
[1752867169353,0.81822795,117790.0,117780.0,0.01864673]
[1752867169655,1.25291551,117790.0,117780.0,0.62828673]
[1752867170257,1.25291551,117790.0,117780.0,0.79799173]
[1752867170456,0.81822795,117790.0,117780.0,0.79799173]
[1752867171458,0.81822795,117790.0,117780.0,1.15879173]
[1752867171956,0.81822795,117790.0,117780.0,0.79799173]
[1752867172353,0.8354801,117790.0,117780.0,0.62828673]
[1752867172656,1.33129062,117790.0,117780.0,0.62828673]
[1752867177662,1.33129062,117790.0,117780.0,0.62824673]
[1752867178056,1.33129062,117790.0,117780.0,0.01864673]
[1752867178264,1.63096766,117790.0,117780.0,0.00010185]
[1752867178466,1.63096766,117790.0,117780.0,0.60966185]
[1752867179065,1.1962801,117790.0,117780.0,0.60966185]
[1752867179562,1.27016766,117790.0,117780.0,0.60966185]
[1752867179862,1.34629062,117790.0,117780.0,0.61066185]
[1752867180263,1.70709062,117790.0,117780.0,0.61066185]
[1752867180659,1.64596766,117790.0,117780.0,0.61066185]
[1752867181556,1.2112801,117790.0,117780.0,0.61066185]
[1752867181963,1.64596766,117790.0,117780.0,0.61066185]
[1752867184460,1.2112801,117790.0,117780.0,0.78036705]
[1752867184660,1.2112801,117790.0,117780.0,0.17080705]
[1752867184866,1.64596766,117790.0,117780.0,0.61062185]
[1752867185766,1.64596766,117790.0,117780.0,0.78032705]
[1752867186069,0.8504801,117790.0,117780.0,1.21501461]
[1752867186270,0.8504801,117790.0,117780.0,1.57581461]
[1752867187168,0.8537801,117790.0,117780.0,1.14112705]
[1752867187369,0.8537801,117790.0,117780.0,1.57581461]
[1752867189470,0.91490306,117790.0,117780.0,1.57581461]
[1752867189765,0.89765091,117790.0,117780.0,1.57581461]
[1752867190162,0.89765091,117790.0,117780.0,1.59502375]
[1752867191673,0.89765091,117790.0,117780.0,1.89022375]
[1752867192068,0.89765091,117790.0,117780.0,1.45553619]
[1752867192268,0.83652795,117790.0,117780.0,1.28583099]
[1752867193474,0.83652795,117790.0,117780.0,1.89022375]
[1752867194172,0.83652795,117790.0,117780.0,1.87101461]
[1752867194975,0.83652795,117790.0,117780.0,1.43632705]
[1752867195171,0.83652795,117790.0,117780.0,1.87101461]
[1752867195572,0.8976431,117790.0,117780.0,1.87101461]
[1752867196175,0.83652795,117790.0,117780.0,1.87101461]
[1752867198077,0.83652795,117790.0,117780.0,1.43632705]
[1752867198278,0.83652795,117790.0,117780.0,1.87101461]
[1752867199479,0.83652795,117790.0,117780.0,1.51021461]
[1752867199679,0.83652795,117790.0,117780.0,1.87101461]
[1752867200178,0.83652795,117790.0,117780.0,1.07552705]
[1752867200377,0.83652795,117790.0,117780.0,1.87101461]
[1752867201080,1.16358862,117790.0,117780.0,1.76338772]
[1752867201385,1.16358862,117790.0,117780.0,2.09044839]
[1752867204187,1.16358862,117790.0,117780.0,1.43632705]
[1752867204389,1.16358862,117790.0,117780.0,2.09044839]
[1752867204886,1.16358862,117790.0,117780.0,1.59368252]
[1752867205681,1.16358862,117790.0,117780.0,1.23288252]
[1752867205881,1.16358862,117790.0,117780.0,0.62336252]
[1752867206180,1.22470377,117790.0,117780.0,0.90574185]
[1752867206379,0.83652795,117790.0,117780.0,1.23280252]
[1752867206783,1.16358862,117790.0,117780.0,1.23280252]
[1752867208083,0.83652795,117790.0,117780.0,1.23280252]
[1752867208288,1.16358862,117790.0,117780.0,1.23280252]
[1752867208788,0.8976431,117790.0,117780.0,1.23280252]
[1752867208987,0.8976431,117790.0,117780.0,1.40250802]
[1752867209187,1.16358862,117790.0,117780.0,1.72956869]
[1752867209390,1.16358862,117790.0,117780.0,1.10730802]
[1752867209890,1.16358862,117790.0,117780.0,0.93760252]
[1752867210184,1.52438862,117790.0,117780.0,0.32816252]
[1752867210489,1.52438862,117790.0,117780.0,0.00110185]
[1752867210683,1.52438862,117790.0,117780.0,0.61054185]
[1752867211388,1.52438862,117790.0,117780.0,0.93760252]
[1752867211985,1.19732795,117790.0,117780.0,0.93760252]
[1752867212186,1.52438862,117790.0,117780.0,0.93760252]
[1752867213290,1.52438862,117790.0,117780.0,0.61054185]
[1752867213487,1.52438862,117790.0,117780.0,0.32816252]
[1752867213789,1.52438862,117790.0,117780.0,0.93832252]
[1752867214088,1.54128727,117790.0,117780.0,0.00110185]
[1752867214288,1.54128727,117790.0,117780.0,0.61126185]
[1752867214683,1.86834794,117790.0,117780.0,0.00110185]
[1752867214986,1.86834794,117790.0,117780.0,0.61106185]
[1752867214987,2.21163201,117790.0,117780.0,0.61106185]
[1752867215183,1.77534175,117790.0,117780.0,0.58606185]
[1752867215381,0.31522,117760.0,117750.0,2.56343799]
[1752867215586,0.82629795,117760.0,117750.0,3.18194239]
[1752867216293,0.82629795,117760.0,117750.0,3.17343799]
[1752867216491,0.83629795,117760.0,117750.0,3.17443799]
[1752867218392,0.83729795,117760.0,117750.0,3.17443799]
[1752867218693,0.83729795,117760.0,117750.0,3.18328246]
[1752867219995,0.83729795,117760.0,117750.0,2.7469922]
[1752867220196,0.83729795,117760.0,117750.0,3.18328246]
[1752867220696,0.90834793,117760.0,117750.0,3.18328246]
[1752867221295,0.64834793,117760.0,117750.0,3.18328246]
[1752867221494,0.87834793,117760.0,117750.0,3.18328246]
[1752867223599,0.87834793,117760.0,117750.0,2.7469922]
[1752867223798,0.87834793,117760.0,117750.0,3.18328246]
[1752867223998,0.87834793,117760.0,117750.0,2.88808246]
[1752867225000,0.87834793,117760.0,117750.0,2.4517922]
[1752867225194,0.87834793,117760.0,117750.0,2.88808246]
[1752867225396,0.87834793,117760.0,117750.0,2.80328886]
[1752867226899,0.90834793,117760.0,117750.0,2.80328886]
[1752867227090,0.84834793,117760.0,117750.0,2.80328886]
[1752867228599,0.90834793,117760.0,117750.0,2.80328886]
[1752867228992,0.90834793,117760.0,117750.0,2.19320886]
[1752867229195,0.90834793,117760.0,117750.0,2.80272886]
[1752867229601,0.90834793,117760.0,117750.0,2.80292886]
[1752867231401,0.90834793,117760.0,117750.0,2.19320886]
[1752867231601,0.90834793,117760.0,117750.0,2.80276886]
[1752867231805,0.90834793,117760.0,117750.0,2.3664786]
[1752867232102,0.90834793,117760.0,117750.0,2.19320886]
[1752867232300,0.90834793,117760.0,117750.0,2.80272886]
[1752867232499,0.76450793,117760.0,117750.0,2.80272886]
[1752867232698,0.71494793,117760.0,117750.0,3.55901912]
[1752867232901,0.22312793,117760.0,117750.0,3.72886712]
[1752867233102,0.22312793,117760.0,117750.0,3.29257686]
[1752867233800,0.02331,117800.0,117790.0,0.1696915]
[1752867233999,0.46,117800.0,117790.0,1.93898176]
[1752867234303,0.11,117800.0,117790.0,1.93898176]
[1752867234602,0.28138,117800.0,117790.0,1.93898176]
[1752867235004,0.30969,117800.0,117790.0,1.93898176]
[1752867236304,0.29438,117800.0,117790.0,2.28898176]
[1752867236505,0.29038,117800.0,117790.0,2.28898176]
[1752867236702,0.007,117800.0,117790.0,2.28898176]
[1752867236907,0.23816954,117820.0,117810.0,0.1696626]
[1752867237204,0.17138,117830.0,117820.0,0.1696483]
[1752867237404,0.19469,117840.0,117830.0,0.1696339]
[1752867237604,0.54469,117840.0,117830.0,1.58830662]
[1752867238403,0.57592,117840.0,117830.0,1.58830662]
[1752867239605,0.54469,117840.0,117830.0,1.58830662]
[1752867239805,0.352,117840.0,117830.0,1.6069887]
[1752867239997,0.52338,117840.0,117830.0,1.17069844]
[1752867240202,0.61629514,117840.0,117830.0,0.9941887]
[1752867240398,0.62029514,117840.0,117830.0,1.6073887]
[1752867240802,0.62029514,117840.0,117830.0,1.9773887]
[1752867241005,0.62029514,117840.0,117830.0,1.6073887]
[1752867241605,0.62029514,117840.0,117830.0,1.17109844]
[1752867241805,0.62029514,117840.0,117830.0,1.6073887]
[1752867242006,0.65152514,117840.0,117830.0,1.17109844]
[1752867242198,0.74379514,117840.0,117830.0,1.6088687]
[1752867242399,0.74379514,117840.0,117830.0,0.54911598]
[1752867242602,1.1800854,117840.0,117830.0,0.99408208]
[1752867242906,0.74379514,117840.0,117830.0,0.99408208]
[1752867243609,0.74379514,117840.0,117830.0,1.16371598]
[1752867244307,0.74379514,117840.0,117830.0,1.60000624]
[1752867245012,0.62029514,117840.0,117830.0,1.60000624]
[1752867245613,0.68377442,117840.0,117830.0,1.60000624]
[1752867245913,0.76430442,117840.0,117830.0,1.60000624]
[1752867246312,0.69469928,117840.0,117830.0,1.60000624]
[1752867246507,0.69469928,117840.0,117830.0,1.16371598]
[1752867246705,0.69469928,117840.0,117830.0,1.60000624]
[1752867247809,0.69469928,117840.0,117830.0,1.16371598]
[1752867248118,0.69469928,117840.0,117830.0,1.60000624]
[1752867248608,0.69469928,117840.0,117830.0,1.16371598]
[1752867248806,0.69469928,117840.0,117830.0,1.60000624]
[1752867250216,0.76170323,117840.0,117830.0,1.60000624]
[1752867251408,0.63763323,117840.0,117830.0,1.60000624]
[1752867252414,0.76170323,117840.0,117830.0,1.60164624]
[1752867254119,0.76170323,117840.0,117830.0,1.16535598]
[1752867254418,0.76170323,117840.0,117830.0,1.60164624]
[1752867255714,0.76170323,117840.0,117830.0,0.37948208]
[1752867256020,0.76170323,117840.0,117830.0,0.99528208]
[1752867256221,1.19799349,117840.0,117830.0,0.37948208]
[1752867256421,1.21516795,117840.0,117830.0,0.63600208]
[1752867256821,0.77887769,117840.0,117830.0,0.63600208]
[1752867257022,0.77887769,117840.0,117830.0,1.24192644]
[1752867257321,0.77887769,117840.0,117830.0,0.80563618]
[1752867257718,0.77887769,117840.0,117830.0,0.99680208]
[1752867257917,0.77887769,117840.0,117830.0,0.63600208]
[1752867258723,0.77887769,117840.0,117830.0,1.16643618]
[1752867258921,0.77887769,117840.0,117830.0,1.60272644]
[1752867260723,0.77887769,117840.0,117830.0,1.16643618]
[1752867261122,0.77887769,117840.0,117830.0,0.99680208]
[1752867261522,0.77887769,117840.0,117830.0,0.63600208]
[1752867261925,0.77887769,117840.0,117830.0,0.99680208]
[1752867262227,0.77887769,117840.0,117830.0,1.16643628]
[1752867262426,0.77887769,117840.0,117830.0,0.80563628]
[1752867264729,0.77887769,117840.0,117830.0,1.24192654]
[1752867265321,0.77887769,117840.0,117830.0,0.63580208]
[1752867265627,0.77887769,117840.0,117830.0,0.99628208]
[1752867265827,0.77887769,117840.0,117830.0,0.63548208]
[1752867266128,0.77887769,117840.0,117830.0,0.99628208]
[1752867266628,0.77887769,117840.0,117830.0,0.80511618]
[1752867266829,1.21516795,117840.0,117830.0,0.01868208]
[1752867267029,0.77887769,117840.0,117830.0,0.63548208]
[1752867267231,1.21516795,117840.0,117830.0,1.16591628]
[1752867267420,0.77887769,117840.0,117830.0,1.16591628]
[1752867269530,0.77887769,117840.0,117830.0,1.60220654]
[1752867270327,0.77887769,117840.0,117830.0,1.60220644]
[1752867270832,0.77887769,117840.0,117830.0,1.16591618]
[1752867271429,0.71187374,117840.0,117830.0,1.16591618]
[1752867272428,0.71187374,117840.0,117830.0,0.99628208]
[1752867273235,1.148164,117840.0,117830.0,1.16591628]
[1752867273534,2.57573231,117840.0,117830.0,0.63584208]
[1752867273732,2.61813781,117840.0,117810.0,1.55413147]
[1752867273932,0.80383541,117820.0,117810.0,1.55413147]
[1752867274126,1.29377469,117820.0,117810.0,2.17149147]
[1752867274938,0.85748443,117820.0,117810.0,2.34115447]
[1752867275633,0.86148443,117820.0,117810.0,2.34115447]
[1752867275936,0.80036928,117820.0,117810.0,2.34115447]
[1752867277237,0.80036928,117820.0,117810.0,1.72379447]
[1752867277436,0.80036928,117820.0,117810.0,2.17117147]
[1752867277737,0.80036928,117820.0,117810.0,2.34083437]
[1752867281039,0.80036928,117820.0,117810.0,2.17117147]
[1752867281434,1.23665954,117820.0,117810.0,0.63589147]
[1752867283746,1.24525057,117820.0,117810.0,0.01885147]
[1752867283948,1.60605057,117820.0,117810.0,0.01885147]
[1752867284147,0.12047,117800.0,117790.0,0.53929178]
[1752867284353,1.22265954,117800.0,117790.0,0.5304918]
[1752867284554,0.78636928,117800.0,117790.0,1.1474918]
[1752867285446,0.78636928,117800.0,117790.0,1.1494918]
[1752867286152,0.78636928,117800.0,117790.0,1.58578206]
[1752867286349,0.66589928,117800.0,117790.0,1.58578206]
[1752867287051,0.79136928,117800.0,117790.0,1.58578206]
[1752867287251,0.79236928,117800.0,117790.0,1.59225803]
[1752867289053,0.79236928,117800.0,117790.0,1.15596777]
[1752867289250,0.79236928,117800.0,117790.0,1.59225803]
[1752867291354,0.79236928,117800.0,117790.0,0.97525783]
[1752867291557,0.79236928,117800.0,117790.0,1.58390186]
[1752867291757,0.79236928,117800.0,117790.0,1.1476116]
[1752867293358,0.79236928,117800.0,117790.0,1.58390186]
[1752867294357,0.79236928,117800.0,117790.0,1.1476116]
[1752867294756,0.79236928,117800.0,117790.0,1.58390186]
[1752867295261,0.79236928,117800.0,117790.0,1.87910186]
[1752867295662,0.79236928,117800.0,117790.0,1.4428116]
[1752867295863,0.79236928,117800.0,117790.0,1.87910186]
[1752867298866,0.86143508,117800.0,117790.0,1.87910186]
[1752867300167,0.86143508,117800.0,117790.0,0.656]
[1752867300364,0.86143508,117800.0,117790.0,0.2952]
[1752867300365,1.31489927,117800.0,117790.0,0.2952]
[1752867300667,0.3059,117790.0,117780.0,0.01899479]
[1752867300869,1.58292954,117790.0,117780.0,0.6176]
[1752867301168,1.39749954,117790.0,117770.0,1.83]
[1752867301364,0.57840026,117780.0,117770.0,1.83]
[1752867301570,1.06833954,117780.0,117770.0,2.15328]
[1752867301867,1.23917954,117780.0,117770.0,1.79248]
[1752867302263,1.23917954,117780.0,117770.0,1.174]
[1752867302465,0.31295,117770.0,117760.0,0.656]
[1752867302662,1.21917954,117770.0,117760.0,0.97896]
[1752867303568,0.78288928,117770.0,117760.0,1.1486947]
[1752867305169,0.78388928,117770.0,117760.0,1.1486947]
[1752867305371,0.78888928,117770.0,117760.0,1.1486947]
[1752867306273,0.78888928,117770.0,117760.0,1.58498496]
[1752867309375,0.78888928,117770.0,117760.0,1.1486947]
[1752867309576,0.78888928,117770.0,117760.0,1.58498496]
[1752867310675,0.78888928,117770.0,117760.0,1.1486947]
[1752867311175,0.78901083,117770.0,117760.0,1.1486947]
[1752867313077,0.78901083,117770.0,117760.0,1.58498496]
[1752867314775,0.47606083,117770.0,117760.0,2.39127522]
[1752867314974,0.47606083,117770.0,117760.0,2.34127522]
[1752867315176,0.47606083,117770.0,117760.0,1.90498496]
[1752867315377,0.64690083,117770.0,117760.0,1.90498496]
[1752867315974,0.66994083,117770.0,117760.0,1.58498496]
[1752867316869,0.64738352,117770.0,117760.0,1.92498496]
[1752867317071,0.53738352,117770.0,117760.0,1.58498496]
[1752867317375,0.53738352,117770.0,117760.0,1.93498496]
[1752867318374,0.53738352,117770.0,117760.0,1.58498496]
[1752867318669,0.53738352,117770.0,117760.0,1.95498496]
[1752867318974,0.53738352,117770.0,117760.0,2.25018496]
[1752867319480,0.53738352,117770.0,117760.0,1.88018496]
[1752867320276,0.53738352,117770.0,117760.0,1.4438947]
[1752867320582,0.53738352,117770.0,117760.0,1.88018496]
[1752867320776,0.53738352,117770.0,117760.0,1.51938496]
[1752867320982,0.53738352,117770.0,117760.0,2.24098496]
[1752867321878,0.66738352,117770.0,117760.0,2.24098496]
[1752867322083,0.66738352,117770.0,117760.0,3.41542496]
[1752867322584,0.69043599,117770.0,117760.0,2.9791347]
[1752867322786,0.80950599,117770.0,117760.0,2.3609747]
[1752867323080,1.24579625,117770.0,117760.0,2.3609747]
[1752867323281,1.24579625,117770.0,117760.0,2.9772147]
[1752867323579,1.24579625,117770.0,117760.0,1.83044]
[1752867323883,1.24579625,117770.0,117760.0,2.08656]
[1752867324183,1.60659625,117770.0,117760.0,0.91232]
[1752867324373,1.60659625,117770.0,117760.0,0.61712]
[1752867324574,0.31295,117760.0,117750.0,0.38791093]
[1752867324775,1.23979625,117760.0,117750.0,0.6258992]
[1752867324977,1.24848777,117760.0,117750.0,0.61736]
[1752867325184,0.81219751,117760.0,117750.0,0.61736]
[1752867325484,1.23979625,117760.0,117750.0,0.61736]
[1752867326183,1.24379625,117760.0,117750.0,0.61736]
[1752867327386,0.28991,117750.0,117740.0,0.5305625]
[1752867327588,0.82350599,117750.0,117740.0,1.1480425]
[1752867328487,0.82351268,117750.0,117740.0,1.1480425]
[1752867329181,0.82551268,117750.0,117740.0,1.1480425]
[1752867329382,0.82551268,117750.0,117740.0,0.97828]
[1752867329783,0.82551268,117750.0,117740.0,1.1480431]
[1752867330280,0.6721075,117750.0,117740.0,0.61724]
[1752867330485,0.14211,117740.0,117730.0,0.615456]
[1752867330686,0.60267268,117740.0,117730.0,1.232976]
[1752867330883,0.76869268,117740.0,117730.0,1.232976]
[1752867331789,0.76869268,117740.0,117730.0,1.234976]
[1752867332089,0.76869268,117740.0,117730.0,1.67126626]
[1752867332388,0.76868869,117740.0,117730.0,1.234976]
[1752867333887,1.20497895,117740.0,117730.0,0.98032]
[1752867334191,1.20497309,117740.0,117730.0,0.3628]
[1752867334391,1.20497309,117740.0,117730.0,0.97984]
[1752867334889,1.27398684,117740.0,117730.0,1.1496171]
[1752867335391,1.27398684,117740.0,117730.0,0.97984]
[1752867335890,1.28249113,117740.0,117730.0,0.97984]
[1752867336194,1.78249113,117740.0,117730.0,0.61904]
[1752867339086,1.78247055,117740.0,117730.0,0.61904]
[1752867339786,1.34618029,117740.0,117730.0,0.61904]
[1752867339983,1.78247055,117740.0,117730.0,0.61904]
[1752867341092,1.77396626,117740.0,117730.0,0.61904]
[1752867341594,1.337676,117740.0,117730.0,0.61904]
[1752867341784,1.77396626,117740.0,117730.0,0.7888175]
[1752867341982,0.837676,117740.0,117730.0,0.7888175]
[1752867342587,0.837676,117740.0,117730.0,1.22510776]
[1752867343186,0.718606,117740.0,117730.0,1.58590776]
[1752867343487,0.695566,117740.0,117730.0,1.58590776]
[1752867344588,0.719526,117740.0,117730.0,1.58590776]
[1752867345596,0.719526,117740.0,117730.0,1.58514776]
[1752867345790,0.719526,117740.0,117730.0,1.58454776]
[1752867347692,0.719526,117740.0,117730.0,1.1482175]
[1752867347896,0.839566,117740.0,117730.0,1.1482175]
[1752867348097,0.839566,117740.0,117730.0,1.58450776]
[1752867348597,0.839566,117740.0,117730.0,1.1476175]
[1752867352699,0.839566,117740.0,117730.0,1.58390776]
[1752867355402,0.839566,117740.0,117730.0,0.96886776]
[1752867355604,1.27585626,117740.0,117730.0,0.61744]
[1752867355902,0.839566,117740.0,117730.0,1.1480173]
[1752867359406,1.27585626,117740.0,117730.0,1.1480173]
[1752867360004,0.839566,117740.0,117730.0,1.1480173]
[1752867361207,1.27585626,117740.0,117730.0,1.1480173]
[1752867361607,0.839566,117740.0,117730.0,1.1480173]
[1752867362099,1.27585626,117740.0,117730.0,1.1480173]
[1752867362606,0.839566,117740.0,117730.0,1.1480173]
[1752867363006,0.83956448,117740.0,117730.0,1.1480173]
[1752867364107,1.27585474,117740.0,117730.0,1.1480173]
[1752867364308,0.83956448,117740.0,117730.0,1.1480173]
[1752867364909,1.27585474,117740.0,117730.0,1.1480173]
[1752867365708,0.83956448,117740.0,117730.0,1.1480173]
[1752867365910,1.27585474,117740.0,117730.0,1.1480173]
[1752867366607,1.65419249,117740.0,117730.0,0.002]
[1752867366811,0.31668,117730.0,117720.0,0.0186703]
[1752867367014,1.57430099,117730.0,117720.0,0.6349503]
[1752867367207,1.63541614,117730.0,117720.0,0.6349503]
[1752867367603,1.57430099,117730.0,117720.0,0.0186703]